bitfinex-derivatives/quotes_BTCF0:USTF0_20241210
["timestamp","ask_amount","ask_price","bid_price","bid_amount"]
[1733810469025,8e-05,96958.0,96957.0,0.05155]
[1733810469213,8e-05,96958.0,96957.0,0.41235]
[1733810469415,8e-05,96958.0,96957.0,0.41239]
[1733810469616,0.09249453,96977.0,96957.0,1.28983337]
[1733810469817,0.54450825,96993.0,96976.0,0.3608]
[1733810469818,0.051539,96978.0,96976.0,0.3608]
[1733810470018,0.051539,96978.0,96977.0,0.1295]
[1733810470019,0.1441467,96978.0,96977.0,0.1295]
[1733810470218,0.1441467,96978.0,96977.0,0.12954]
[1733810470417,0.1441467,96978.0,96977.0,0.18947012]
[1733810470418,0.02834269,96978.0,96977.0,0.18947012]
[1733810470620,0.02834269,96978.0,96977.0,0.20165456]
[1733810470819,0.12095039,96978.0,96977.0,0.20165456]
[1733810471220,0.03034269,96978.0,96977.0,0.20165456]
[1733810471418,0.03034269,96978.0,96977.0,0.19521114]
[1733810472223,0.03034269,96978.0,96977.0,0.25821114]
[1733810472427,0.03134269,96978.0,96977.0,0.25821114]
[1733810473322,0.03134269,96978.0,96977.0,0.50399464]
[1733810473522,0.03134269,96978.0,96977.0,0.50398764]
[1733810474331,0.03134269,96978.0,96977.0,0.25820423]
[1733810474628,0.003,96978.0,96977.0,0.25820423]
[1733810474826,0.003,96978.0,96977.0,0.50398764]
[1733810475126,0.003,96978.0,96977.0,0.25820423]
[1733810476325,0.003,96978.0,96977.0,0.25819384]
[1733810478837,0.003,96978.0,96977.0,0.06569384]
[1733810479627,0.003,96978.0,96977.0,0.06569396]
[1733810481032,0.003,96978.0,96977.0,0.02270029]
[1733810481233,0.003,96978.0,96977.0,0.0205837]
[1733810481423,0.003,96978.0,96977.0,0.02270029]
[1733810481734,0.003,96978.0,96977.0,0.36260626]
[1733810482026,0.003,96978.0,96977.0,0.11722441]
[1733810482226,0.003,96978.0,96977.0,0.36257397]
[1733810482726,0.003,96978.0,96977.0,0.35417464]
[1733810482932,0.003,96978.0,96977.0,0.36255055]
[1733810483326,0.003,96978.0,96977.0,0.11720099]
[1733810483527,0.003,96978.0,96977.0,0.10505662]
[1733810483837,0.01340253,96978.0,96977.0,0.10505662]
[1733810484035,0.003,96978.0,96977.0,0.10505662]
[1733810484834,0.003,96978.0,96977.0,0.05352062]
[1733810486030,0.003,96978.0,96977.0,0.00841591]
[1733810486722,0.003,96978.0,96977.0,0.25350981]
[1733810487223,0.051532,96985.0,96978.0,0.051535]
[1733810487426,0.05565344,97000.0,96977.0,0.00841591]
[1733810487427,0.05565344,97000.0,96984.0,0.3608]
[1733810487733,0.051527,96993.0,96992.0,0.3608]
[1733810487929,0.051527,96993.0,96992.0,0.36917591]
[1733810488339,0.051527,96993.0,96992.0,0.41427036]
[1733810489342,0.059527,96993.0,96992.0,0.41527036]
[1733810489740,0.008,96993.0,96992.0,0.41527036]
[1733810490035,0.051518,97012.0,97005.0,0.05152]
[1733810490332,0.0583,97017.0,97011.0,0.051517]
[1733810490536,0.0583,97017.0,97016.0,0.3608]
[1733810490734,0.0583,97017.0,97016.0,0.36921591]
[1733810490937,0.01046891,97018.0,97017.0,0.051515]
[1733810491137,0.00012128,97020.0,97019.0,0.051514]
[1733810491434,0.00012128,97020.0,97019.0,0.00841591]
[1733810491735,0.06282128,97020.0,97019.0,0.00841591]
[1733810492844,0.12372128,97020.0,97019.0,0.00841591]
[1733810493330,0.12372128,97020.0,97019.0,0.00941591]
[1733810493636,0.12872128,97020.0,97019.0,0.00941591]
[1733810494234,0.13883949,97020.0,97019.0,0.00941591]
[1733810495234,0.13883949,97020.0,97019.0,0.00104]
[1733810495435,0.13883949,97020.0,97019.0,0.00941301]
[1733810496942,0.07793949,97020.0,97019.0,0.00941301]
[1733810498542,0.01523949,97020.0,97019.0,0.0094131]
[1733810498843,0.01523949,97020.0,97019.0,0.01151367]
[1733810499244,0.01523949,97020.0,97019.0,0.00941294]
[1733810503240,0.01523949,97020.0,97019.0,0.37021294]
[1733810505244,0.051514,97017.0,97015.0,0.0020996]
[1733810505555,0.051514,97017.0,97012.0,0.0020996]
[1733810505556,0.12358,97016.0,97012.0,0.0020996]
[1733810505848,0.051518,97011.0,97009.0,0.0020996]
[1733810506045,8e-05,97013.0,97008.0,0.0020996]
[1733810506244,0.051519,97009.0,97008.0,0.0020996]
[1733810506448,0.051523,97000.0,96999.0,0.3608]
[1733810506649,8e-05,97009.0,96999.0,0.00210109]
[1733810506650,0.3608,97007.0,96999.0,0.00210109]
[1733810506950,0.051524,96999.0,96996.0,0.0021013]
[1733810507149,8e-05,97000.0,96994.0,0.0021013]
[1733810507337,0.051526,96995.0,96994.0,0.0021013]
[1733810507738,0.051606,96995.0,96993.0,0.0021013]
[1733810507941,0.0582,96994.0,96988.0,0.0021013]
[1733810508137,0.051529,96989.0,96988.0,0.0021013]
[1733810508342,0.051531,96986.0,96985.0,0.3608]
[1733810508543,0.051531,96986.0,96985.0,0.40590128]
[1733810508837,0.051611,96986.0,96985.0,0.40590128]
[1733810509246,8e-05,96986.0,96985.0,0.40590128]
[1733810509746,8e-05,96986.0,96985.0,0.58943128]
[1733810510357,8e-05,96986.0,96985.0,0.40590128]
[1733810510541,8e-05,96986.0,96985.0,0.40890128]
[1733810511049,8e-05,96986.0,96985.0,0.40590128]
[1733810511248,0.051611,96986.0,96985.0,0.41690128]
[1733810511550,0.14388759,96986.0,96985.0,0.05610128]
[1733810511738,0.051611,96986.0,96985.0,0.05610128]
[1733810512045,0.113111,96986.0,96985.0,0.05210128]
[1733810512246,0.113111,96986.0,96985.0,0.05410128]
[1733810512450,0.113111,96986.0,96985.0,0.006]
[1733810512854,0.113111,96986.0,96973.0,0.00210304]
[1733810512855,0.06158,96986.0,96973.0,0.00210304]
[1733810513151,0.05154,96969.0,96967.0,0.00210304]
[1733810513350,0.051542,96965.0,96964.0,0.3608]
[1733810513538,0.051546,96957.0,96956.0,0.18378943]
[1733810513850,0.051547,96956.0,96953.0,0.18378943]
[1733810514153,0.051552,96946.0,96944.0,0.18378943]
[1733810514358,0.051554,96942.0,96941.0,0.0619]
[1733810514546,0.051554,96942.0,96939.0,0.3608]
[1733810514748,0.051634,96942.0,96940.0,0.04512054]
[1733810515049,0.051544,96961.0,96942.0,0.051554]
[1733810515243,0.051544,96961.0,96953.0,0.3608]
[1733810515443,0.06207529,96961.0,96954.0,0.06705668]
[1733810515644,0.06207529,96961.0,96955.0,0.00515668]
[1733810515851,0.051544,96961.0,96956.0,0.00515668]
[1733810516051,0.051544,96961.0,96957.0,0.00515668]
[1733810516243,0.051544,96961.0,96954.0,0.0619]
[1733810516244,0.051545,96959.0,96958.0,0.00515668]
[1733810517156,0.051545,96959.0,96958.0,0.00837842]
[1733810517646,0.051545,96959.0,96958.0,0.01137842]
[1733810518051,0.051545,96959.0,96958.0,0.00937842]
[1733810518244,0.053545,96959.0,96958.0,0.00937842]
[1733810518753,0.051545,96959.0,96958.0,0.01137842]
[1733810520255,0.051545,96959.0,96958.0,0.01037842]
[1733810520447,0.051545,96959.0,96958.0,0.01137842]
[1733810521046,0.051545,96959.0,96958.0,0.01037842]
[1733810521246,0.051545,96959.0,96958.0,0.01137842]
[1733810521443,0.3608,96967.0,96958.0,0.01137842]
[1733810521647,0.3608,96978.0,96966.0,0.3608]
[1733810521648,0.051536,96977.0,96966.0,0.3608]
[1733810521845,0.051536,96977.0,96974.0,0.3608]
[1733810522046,0.051536,96976.0,96975.0,0.00837842]
[1733810522351,0.051536,96976.0,96975.0,0.0083765]
[1733810523349,0.051541,96967.0,96966.0,4e-05]
[1733810523551,0.051541,96967.0,96966.0,0.00841799]
[1733810523755,0.051541,96967.0,96966.0,0.0032623]
[1733810524655,0.115641,96967.0,96966.0,0.0032623]
[1733810525048,0.12600963,96967.0,96966.0,0.00326262]
[1733810525253,0.12600963,96967.0,96966.0,0.0032626]
[1733810525848,0.12600963,96967.0,96966.0,4e-05]
[1733810526155,0.12500963,96967.0,96966.0,4e-05]
[1733810526559,0.05155,96949.0,96935.0,0.0605]
[1733810526751,0.05155,96949.0,96948.0,0.36917887]
[1733810527552,0.05163,96949.0,96948.0,0.36917887]
[1733810527756,0.05163,96949.0,96948.0,0.37117887]
[1733810527948,0.05163,96949.0,96948.0,0.37417887]
[1733810528550,0.05163,96949.0,96948.0,0.37217887]
[1733810528750,0.05163,96949.0,96948.0,0.37417887]
[1733810528950,0.05163,96949.0,96948.0,0.01337887]
[1733810529455,0.06173928,96949.0,96948.0,0.01337887]
[1733810529656,0.06173928,96949.0,96948.0,0.00822264]
[1733810530456,0.06173928,96949.0,96948.0,0.0082231]
[1733810531558,0.06173928,96949.0,96948.0,0.005]
[1733810531753,0.051557,96936.0,96917.0,0.04512583]
[1733810531953,0.051567,96918.0,96917.0,0.10562583]
[1733810532261,0.051567,96918.0,96917.0,0.06888121]
[1733810532262,0.051647,96918.0,96917.0,0.06888121]
[1733810532659,0.051647,96918.0,96917.0,0.0605]
[1733810532965,0.051647,96918.0,96917.0,0.06888149]
[1733810533355,0.051647,96918.0,96917.0,0.07788149]
[1733810533962,0.051647,96918.0,96917.0,0.07588149]
[1733810534559,0.051647,96918.0,96917.0,0.08388149]
[1733810535167,0.051647,96918.0,96917.0,0.07888149]
[1733810535962,0.051647,96918.0,96917.0,0.01838162]
[1733810537866,0.051647,96918.0,96917.0,0.00838162]
[1733810538056,0.051647,96918.0,96917.0,0.01138162]
[1733810540556,8e-05,96918.0,96902.0,0.4196]
[1733810540756,0.051575,96903.0,96902.0,0.0588]
[1733810540951,0.051655,96903.0,96902.0,0.0588]
[1733810541757,0.051655,96903.0,96902.0,0.0638]
[1733810542861,0.052655,96903.0,96902.0,0.0728]
[1733810545061,0.00108,96903.0,96902.0,0.0728]
[1733810545263,0.3608,96913.0,96902.0,0.0728]
[1733810545462,0.3608,96913.0,96902.0,0.11793655]
[1733810545670,0.051575,96903.0,96902.0,0.0728]
[1733810547462,0.051575,96903.0,96902.0,0.0678]
[1733810547767,0.051575,96903.0,96902.0,0.0728]
[1733810548363,0.051575,96903.0,96902.0,0.0678]
[1733810548565,0.051575,96903.0,96902.0,0.0728]
[1733810548771,0.051575,96903.0,96902.0,0.014]
[1733810549357,0.06175723,96903.0,96902.0,0.014]
[1733810549968,0.051576,96901.0,96900.0,0.09242236]
[1733810550364,0.051656,96901.0,96900.0,0.09242236]
[1733810551364,0.051656,96901.0,96900.0,0.09342236]
[1733810552170,0.051656,96901.0,96900.0,0.14371833]
[1733810552171,0.052656,96901.0,96900.0,0.14371833]
[1733810552664,0.052656,96901.0,96900.0,0.14694243]
[1733810552863,0.052656,96901.0,96900.0,0.14594243]
[1733810553062,0.055656,96901.0,96900.0,0.09564646]
[1733810553464,0.052656,96901.0,96900.0,0.09564646]
[1733810554068,0.00108,96901.0,96900.0,0.09564646]
[1733810554269,0.051572,96909.0,96900.0,0.19235956]
[1733810554467,0.051572,96909.0,96908.0,0.3608]
[1733810554773,0.051572,96909.0,96908.0,0.4091612]
[1733810555371,0.052572,96909.0,96908.0,0.4091612]
[1733810555677,0.001,96909.0,96908.0,0.4091612]
[1733810555880,0.051569,96915.0,96908.0,0.4091612]
[1733810556180,0.051569,96915.0,96914.0,4e-05]
[1733810556372,0.051569,96915.0,96914.0,0.0484012]
[1733810557269,0.055569,96915.0,96914.0,0.0484012]
[1733810558482,0.055569,96915.0,96914.0,0.00326389]
[1733810558672,0.058569,96915.0,96914.0,0.00326389]
[1733810558974,0.060569,96915.0,96914.0,0.00426389]
[1733810561076,0.07083688,96915.0,96914.0,0.00426389]
[1733810561981,0.07083688,96915.0,96914.0,0.04939756]
[1733810562479,0.16320981,96915.0,96914.0,0.04939756]
[1733810562668,0.19387247,96915.0,96914.0,0.04939756]
[1733810562873,0.07083688,96915.0,96914.0,0.04939756]
[1733810563874,0.07083688,96915.0,96914.0,0.00426389]
[1733810565773,0.051575,96904.0,96903.0,0.1844646]
[1733810565974,0.051575,96904.0,96902.0,0.1844646]
[1733810566175,0.051655,96904.0,96902.0,0.1844646]
[1733810566576,0.051655,96904.0,96900.0,0.09242236]
[1733810566577,0.051655,96904.0,96903.0,0.04514078]
[1733810567277,0.052655,96904.0,96903.0,0.04514078]
[1733810568385,0.06318138,96904.0,96903.0,0.04514078]
[1733810568879,0.01160638,96904.0,96900.0,0.09242236]
[1733810569082,0.051576,96901.0,96900.0,0.09242236]
[1733810569291,0.051656,96901.0,96900.0,0.09242236]
[1733810570586,0.051656,96901.0,96875.0,0.2447033]
[1733810570587,0.051587,96881.0,96875.0,0.2447033]
[1733810570777,0.051587,96881.0,96880.0,0.18455125]
[1733810571282,0.412387,96881.0,96880.0,0.15363845]
[1733810571584,0.53588988,96881.0,96880.0,0.14929858]
[1733810571888,0.412387,96881.0,96880.0,0.14929858]
[1733810572276,0.412387,96881.0,96880.0,0.08888685]
[1733810572592,0.051593,96870.0,96855.0,0.0607]
[1733810572776,0.051593,96870.0,96869.0,0.40595747]
[1733810572978,0.10724144,96879.0,96869.0,0.40595611]
[1733810573284,0.01099661,96881.0,96878.0,0.36084]
[1733810573481,0.0104366,96881.0,96879.0,0.16605611]
[1733810573676,0.051586,96884.0,96880.0,0.04519611]
[1733810574184,0.01021975,96883.0,96882.0,4e-05]
[1733810574385,0.00013362,96883.0,96882.0,4e-05]
[1733810574888,0.00013362,96883.0,96882.0,0.04519611]
[1733810576190,0.00013362,96883.0,96882.0,0.04619611]
[1733810576687,0.00013362,96883.0,96882.0,0.04719611]
[1733810576991,0.00013362,96883.0,96882.0,0.00204]
[1733810577782,0.00013362,96883.0,96882.0,0.00526498]
[1733810578082,0.00013362,96883.0,96882.0,0.00526499]
[1733810579192,0.00113362,96883.0,96882.0,0.00326499]
[1733810580693,0.00113362,96883.0,96882.0,0.0484162]
[1733810581585,0.00113362,96883.0,96882.0,0.00326499]
[1733810581795,0.11663362,96883.0,96882.0,0.00326499]
[1733810582187,0.051587,96882.0,96861.0,0.0573]
[1733810582383,0.051593,96870.0,96861.0,0.0573]
[1733810582588,0.051673,96870.0,96861.0,0.0573]
[1733810583694,0.051673,96870.0,96869.0,0.3618]
[1733810583695,8e-05,96870.0,96869.0,0.3618]
[1733810583894,8e-05,96870.0,96869.0,0.3628]
[1733810584304,0.00013362,96883.0,96869.0,0.775193]
[1733810584493,0.051583,96889.0,96882.0,0.3608]
[1733810584691,8e-05,96904.0,96883.0,0.110486]
[1733810584892,0.051579,96895.0,96894.0,0.3608]
[1733810585495,0.051579,96895.0,96894.0,0.0451559]
[1733810585795,0.051583,96888.0,96883.0,0.0599]
[1733810586005,0.05565344,96900.0,96883.0,0.0599]
[1733810586196,8e-05,96884.0,96883.0,0.0599]
[1733810586393,8e-05,96884.0,96883.0,0.0589]
[1733810586903,0.005,96895.0,96883.0,0.0589]
[1733810587199,0.05565344,96900.0,96883.0,0.0669]
[1733810587404,0.051584,96887.0,96883.0,0.0669]
[1733810587605,0.051584,96887.0,96884.0,0.0599]
[1733810588000,0.05158,96895.0,96886.0,0.2447033]
[1733810588306,0.05158,96895.0,96894.0,0.3608]
[1733810589610,0.05158,96895.0,96894.0,0.3628]
[1733810589899,0.05158,96895.0,96894.0,0.004]
[1733810590296,0.05158,96895.0,96894.0,0.003]
[1733810590495,0.05158,96895.0,96894.0,0.001]
[1733810591801,0.051584,96887.0,96884.0,0.0599]
[1733810591996,0.051584,96886.0,96884.0,0.0599]
[1733810592199,8e-05,96885.0,96884.0,0.0599]
[1733810593501,8e-05,96885.0,96884.0,0.0629]
[1733810594304,8e-05,96885.0,96884.0,0.06612489]
[1733810594505,8e-05,96885.0,96884.0,0.06812489]
[1733810595404,8e-05,96885.0,96884.0,0.06712489]
[1733810595998,8e-05,96885.0,96884.0,0.11227139]
[1733810596202,8e-05,96885.0,96884.0,0.35397469]
[1733810596397,8e-05,96885.0,96884.0,0.35497469]
[1733810596809,8e-05,96885.0,96884.0,0.35397469]
[1733810597105,8e-05,96885.0,96884.0,0.11027139]
[1733810597307,8e-05,96885.0,96884.0,0.16185639]
[1733810597505,0.051578,96898.0,96884.0,0.41563208]
[1733810597700,0.3608,96900.0,96891.0,0.24574226]
[1733810598003,0.051577,96899.0,96897.0,4e-05]
[1733810598202,0.051577,96899.0,96898.0,0.04837139]
[1733810599904,0.051577,96899.0,96898.0,0.00322489]
[1733810601307,0.051577,96899.0,96898.0,0.04837018]
[1733810601700,0.051577,96899.0,96898.0,0.00322489]
[1733810601907,0.051585,96885.0,96884.0,0.0599]
[1733810602210,0.051665,96885.0,96884.0,0.0599]
[1733810602607,0.051665,96885.0,96884.0,0.105049]
[1733810602998,0.051665,96885.0,96884.0,0.110049]
[1733810603598,0.051665,96885.0,96884.0,0.106049]
[1733810604210,0.051665,96885.0,96884.0,0.046149]
[1733810604609,0.051665,96885.0,96884.0,0.049149]
[1733810605303,0.051665,96885.0,96884.0,0.045149]
[1733810605612,0.051665,96885.0,96884.0,0.046149]
[1733810606412,0.052665,96885.0,96884.0,0.045149]
[1733810607309,0.06295851,96885.0,96884.0,0.045149]
[1733810613912,0.06295851,96885.0,96884.0,0.04837396]
[1733810614619,0.15558822,96885.0,96884.0,0.00322496]
[1733810617024,0.06295851,96885.0,96884.0,0.00322496]
[1733810618923,0.06195851,96885.0,96884.0,0.00322496]
[1733810619123,0.06495851,96885.0,96884.0,0.00322496]
[1733810620325,0.051591,96872.0,96871.0,0.24574226]
[1733810620519,0.14433075,96872.0,96871.0,0.04515507]
[1733810620820,0.14441075,96872.0,96871.0,0.04515507]
[1733810621026,0.051671,96872.0,96870.0,0.00012473]
[1733810621319,8e-05,96871.0,96870.0,0.00012473]
[1733810621626,8e-05,96871.0,96870.0,0.04528101]
[1733810621812,8e-05,96871.0,96870.0,0.00012473]
[1733810622215,0.0927805,96871.0,96870.0,0.00012473]
[1733810622415,8e-05,96871.0,96870.0,0.00012473]
[1733810622921,0.00108,96871.0,96870.0,0.00012473]
[1733810623115,0.09376446,96871.0,96870.0,0.00012473]
[1733810625919,0.1068226,96871.0,96870.0,0.00012473]
[1733810626113,0.01413814,96871.0,96870.0,0.00012473]
[1733810626718,0.00108,96871.0,96870.0,0.24586699]
[1733810626916,0.00108,96871.0,96870.0,0.00012473]
[1733810627118,0.00108,96871.0,96870.0,0.0452756]
[1733810627418,0.00108,96871.0,96870.0,0.29126695]
[1733810627622,0.09268446,96886.0,96870.0,0.0452756]
[1733810627821,0.051584,96885.0,96884.0,0.3608]
[1733810628421,0.051584,96885.0,96884.0,0.40595087]
[1733810629421,0.053584,96885.0,96884.0,0.40595087]
[1733810629927,0.054584,96885.0,96884.0,0.40595087]
[1733810630923,0.054584,96885.0,96884.0,0.04515087]
[1733810631925,0.053584,96885.0,96884.0,0.04515087]
[1733810632122,0.053584,96885.0,96883.0,0.24595452]
[1733810632320,0.053584,96885.0,96884.0,0.00322521]
[1733810632718,0.177237,96885.0,96884.0,0.00322521]
[1733810632923,0.053584,96885.0,96884.0,0.00322521]
[1733810633432,0.10274967,96885.0,96884.0,0.00322521]
[1733810633926,0.20709558,96885.0,96884.0,0.00322521]
[1733810634228,0.052584,96885.0,96884.0,0.00322521]
[1733810634430,0.053584,96885.0,96884.0,0.00322521]
[1733810636028,0.053584,96885.0,96871.0,0.3608]
[1733810636029,0.051589,96877.0,96871.0,0.3608]
[1733810636231,0.051589,96877.0,96871.0,0.66797782]
[1733810636427,0.051589,96877.0,96872.0,0.00322505]
[1733810636631,0.09468873,96885.0,96871.0,0.66797782]
[1733810636632,0.051585,96883.0,96873.0,0.35555358]
[1733810636828,0.051585,96883.0,96874.0,0.04515071]
[1733810636829,0.051588,96878.0,96874.0,0.04515071]
[1733810637028,0.051588,96878.0,96875.0,0.00322493]
[1733810637221,0.051588,96878.0,96876.0,0.00322493]
[1733810637425,0.051588,96878.0,96877.0,0.00322493]
[1733810637645,0.051588,96878.0,96877.0,0.04837564]
[1733810639228,0.051588,96878.0,96877.0,0.04837568]
[1733810639427,0.051588,96878.0,96877.0,0.05037568]
[1733810639630,0.051588,96878.0,96877.0,0.05137568]
[1733810641543,0.051588,96878.0,96877.0,0.05137567]
[1733810641935,0.0647753,96878.0,96877.0,0.05137567]
[1733810642642,0.0647753,96878.0,96877.0,0.04815071]
[1733810643743,0.0647753,96878.0,96877.0,0.003]
[1733810643951,0.0647753,96878.0,96877.0,0.04815336]
[1733810644132,0.0647753,96878.0,96877.0,0.003]
[1733810645438,0.0647753,96878.0,96877.0,0.002]
[1733810645648,0.051591,96871.0,96870.0,0.00012473]
[1733810645935,0.051591,96871.0,96861.0,0.0595]
[1733810645936,0.051595,96865.0,96861.0,0.0595]
[1733810646335,8e-05,96864.0,96861.0,0.0595]
[1733810646930,8e-05,96864.0,96857.0,0.0563]
[1733810646931,8e-05,96864.0,96857.0,0.36347782]
[1733810647139,8e-05,96864.0,96863.0,0.3618]
[1733810647738,8e-05,96864.0,96863.0,0.4069576]
[1733810648540,8e-05,96864.0,96863.0,0.4099576]
[1733810648735,0.01328534,96864.0,96863.0,0.4099576]
[1733810649041,8e-05,96864.0,96863.0,0.4099576]
[1733810649945,8e-05,96864.0,96863.0,0.3648]
[1733810651139,8e-05,96864.0,96863.0,0.40995928]
[1733810651738,0.09270282,96874.0,96863.0,0.97279147]
[1733810651739,0.05159,96874.0,96863.0,0.97279147]
[1733810651940,0.05159,96874.0,96872.0,0.3608]
[1733810652245,0.06419771,96874.0,96873.0,4e-05]
[1733810652838,0.06419771,96874.0,96873.0,0.04519928]
[1733810653931,0.01260771,96874.0,96873.0,0.10209928]
[1733810654249,0.05565344,96878.0,96873.0,0.10209928]
[1733810654543,0.05159,96875.0,96873.0,0.10205928]
[1733810654931,0.05159,96875.0,96874.0,0.04515928]
[1733810656247,0.17518396,96875.0,96874.0,0.04615928]
[1733810656550,0.05159,96875.0,96874.0,0.002]
[1733810657349,0.05259,96875.0,96850.0,0.3608]
[1733810657545,0.051602,96852.0,96850.0,0.3608]
[1733810657745,0.051602,96852.0,96851.0,6.187e-05]
[1733810659041,0.052602,96852.0,96851.0,0.00806187]
[1733810659739,0.052602,96852.0,96851.0,0.01206187]
[1733810660349,0.06325871,96852.0,96850.0,0.32640967]
[1733810660650,0.06325871,96852.0,96850.0,0.26963339]
[1733810661146,0.08647356,96852.0,96850.0,0.26963339]
[1733810661348,0.08647356,96852.0,96850.0,0.21156674]
[1733810661747,0.08547356,96852.0,96850.0,0.21256674]
[1733810661943,0.08547356,96852.0,96850.0,0.001]
[1733810661944,0.052602,96852.0,96850.0,0.001]
[1733810662151,0.051609,96838.0,96831.0,0.30749958]
[1733810662346,0.051613,96830.0,96829.0,0.0573]
[1733810664458,0.051616,96825.0,96824.0,0.0606]
[1733810664755,8e-05,96825.0,96820.0,0.0573]
[1733810664952,0.051618,96821.0,96820.0,0.0573]
[1733810665145,0.051698,96821.0,96820.0,0.0573]
[1733810666046,8e-05,96821.0,96820.0,0.0573]
[1733810666445,8e-05,96821.0,96820.0,0.0613]
[1733810666646,0.00108,96821.0,96820.0,0.0613]
[1733810668460,8e-05,96821.0,96820.0,0.0613]
[1733810668750,0.00108,96821.0,96820.0,0.0623]
[1733810671359,0.00108,96821.0,96820.0,0.02134318]
[1733810671657,0.00108,96821.0,96820.0,0.38214318]
[1733810672047,0.01316689,96830.0,96820.0,0.38214318]
[1733810672257,8e-05,96832.0,96829.0,0.3608]
[1733810672459,8e-05,96832.0,96830.0,0.110013]
[1733810672657,0.0127743,96832.0,96830.0,0.110013]
[1733810672852,8e-05,96832.0,96830.0,0.110013]
[1733810674853,8e-05,96832.0,96830.0,0.112013]
[1733810675061,8e-05,96832.0,96830.0,0.114013]
[1733810676048,8e-05,96832.0,96830.0,0.42151258]
[1733810676253,8e-05,96832.0,96831.0,0.30749958]
[1733810676451,8e-05,96832.0,96831.0,0.25712792]
[1733810677856,8e-05,96832.0,96831.0,0.25912792]
[1733810678156,8e-05,96832.0,96831.0,0.26112792]
[1733810678953,0.00208,96832.0,96831.0,0.26312792]
[1733810680355,0.05565344,96850.0,96844.0,0.051606]
[1733810680562,0.01288303,96852.0,96844.0,0.412406]
[1733810680864,0.01288303,96852.0,96844.0,0.412446]
[1733810681062,0.01288303,96852.0,96844.0,0.47837488]
[1733810681548,0.05565344,96860.0,96844.0,0.47837488]
[1733810681754,0.05565344,96860.0,96844.0,0.48137488]
[1733810681957,0.051598,96859.0,96844.0,0.48137488]
[1733810682159,0.051598,96859.0,96844.0,0.48337488]
[1733810682160,0.00112802,96845.0,96844.0,0.48337488]
[1733810682457,0.051598,96859.0,96849.0,0.051603]
[1733810682677,0.0642487,96859.0,96857.0,0.0020876]
[1733810682967,0.0642487,96859.0,96858.0,0.02289572]
[1733810683460,0.0642487,96859.0,96858.0,0.06605009]
[1733810685060,0.0126507,96859.0,96858.0,0.06605009]
[1733810685264,0.0586,96866.0,96858.0,0.06605009]
[1733810685458,0.165995,96865.0,96859.0,0.02285631]
[1733810685763,0.165995,96865.0,96864.0,4e-05]
[1733810685964,0.165995,96865.0,96864.0,0.02080812]
[1733810686163,0.17838485,96865.0,96864.0,0.0208203]
[1733810687256,0.12678985,96865.0,96864.0,0.0208203]
[1733810688062,0.13078985,96865.0,96864.0,0.0208203]
[1733810691069,0.13078985,96865.0,96864.0,0.0724153]
[1733810691568,0.13078985,96865.0,96864.0,0.0208203]
[1733810694272,0.18238485,96865.0,96864.0,0.0208203]
[1733810695771,0.18238485,96865.0,96864.0,0.02058185]
[1733810695963,0.18238485,96865.0,96864.0,0.01219503]
[1733810696266,0.18238485,96865.0,96864.0,0.02059006]
[1733810698964,0.18238485,96865.0,96864.0,0.02060142]
[1733810699370,0.2750318,96865.0,96864.0,0.02060142]
[1733810699763,0.18238485,96865.0,96864.0,0.02060142]
[1733810700764,0.27506468,96865.0,96864.0,0.0226896]
[1733810701362,0.18238485,96865.0,96864.0,0.02060142]
[1733810702175,0.18238485,96865.0,96864.0,0.00842686]
[1733810703369,0.18238485,96865.0,96864.0,0.19265128]
[1733810703370,0.30592872,96865.0,96864.0,0.19265128]
[1733810703580,0.18238485,96865.0,96864.0,0.19265128]
[1733810703968,0.01638985,96865.0,96864.0,0.00842686]
[1733810704365,0.46995931,96865.0,96864.0,0.00842686]
[1733810704673,0.01638985,96865.0,96864.0,0.00842686]
[1733810704979,0.09277885,96874.0,96864.0,0.30978565]
[1733810705189,0.09277885,96874.0,96873.0,0.30791974]
[1733810705368,0.09277885,96874.0,96873.0,0.61750587]
[1733810705564,0.09277885,96874.0,96873.0,0.66931531]
[1733810705776,0.09277885,96874.0,96873.0,0.67373583]
[1733810706269,0.09277885,96874.0,96873.0,0.98140624]
[1733810706469,0.09277885,96874.0,96873.0,0.98125931]
[1733810706674,0.09277885,96874.0,96873.0,0.6735889]
[1733810706867,0.00137885,96874.0,96873.0,0.6735889]
[1733810707170,0.00146936,96874.0,96873.0,0.68971543]
[1733810707574,0.09277481,96877.0,96873.0,0.72584122]
[1733810707774,0.09277481,96877.0,96876.0,0.051589]
[1733810707974,0.09277481,96877.0,96876.0,0.31064395]
[1733810708275,0.09277481,96877.0,96876.0,0.32225267]
[1733810708873,0.09577481,96877.0,96876.0,0.33192983]
[1733810709173,0.09577481,96877.0,96876.0,0.32225267]
[1733810709368,0.09277243,96879.0,96878.0,0.051588]
[1733810709570,0.412376,96901.0,96881.0,0.051586]
[1733810709872,0.3608,96901.0,96900.0,4e-05]
[1733810710079,0.3608,96901.0,96900.0,0.00842407]
[1733810710268,0.0575,96911.0,96900.0,0.00842407]
[1733810710469,0.0575,96911.0,96910.0,0.051571]
[1733810710675,0.0575,96911.0,96910.0,0.24411695]
[1733810710870,0.0575,96911.0,96910.0,0.06006887]
[1733810711069,0.0575,96911.0,96910.0,0.00011604]
[1733810711272,0.0575,96911.0,96910.0,0.00849774]
[1733810711773,0.0665,96911.0,96910.0,0.00949774]
[1733810711974,0.07869151,96911.0,96910.0,0.00949774]
[1733810712481,0.08369151,96911.0,96910.0,0.00949774]
[1733810713269,0.08369151,96911.0,96908.0,0.18380911]
[1733810713270,0.051571,96910.0,96908.0,0.18380911]
[1733810713579,0.051575,96903.0,96897.0,0.18588871]
[1733810713776,0.051575,96903.0,96898.0,0.18380911]
[1733810714078,8e-05,96898.0,96895.0,0.18380911]
[1733810714268,8e-05,96898.0,96896.0,0.05165212]
[1733810714467,0.05565344,96920.0,96901.0,0.051575]
[1733810714672,0.051572,96909.0,96903.0,0.00207843]
[1733810715176,0.07469151,96911.0,96904.0,0.00207843]
[1733810715372,0.004,96910.0,96904.0,0.05757843]
[1733810716080,0.003,96909.0,96904.0,0.05757843]
[1733810716272,0.051572,96908.0,96904.0,0.0555]
[1733810717378,0.006,96909.0,96904.0,0.0555]
[1733810717575,0.007,96908.0,96904.0,0.05857843]